bitfinex-derivatives/quotes_ETHF0:USTF0_20251117
["timestamp","ask_amount","ask_price","bid_price","bid_amount"]
[1763400683464,0.76607738,3096.6,3095.6,3.2078]
[1763400683669,3.2078,3096.0,3095.1,3.2078]
[1763400684165,0.00307749,3096.0,3095.6,3.2078]
[1763400684669,3.21087749,3096.0,3095.5,0.0048398]
[1763400685167,3.21087749,3096.0,3095.6,3.2078]
[1763400685358,3.21087749,3096.0,3095.5,0.0048398]
[1763400687257,0.76518196,3095.9,3095.5,0.0048398]
[1763400687567,0.76518196,3095.9,3095.2,3.2078]
[1763400687773,0.76518196,3095.9,3095.1,0.00319278]
[1763400687774,0.4404,3095.4,3095.1,0.00319278]
[1763400688260,0.76225939,3095.3,3095.1,0.00319278]
[1763400688466,0.76225939,3095.3,3094.4,3.2078]
[1763400688660,0.367,3094.7,3094.5,0.0048398]
[1763400689165,3.2078,3094.6,3094.5,0.0048398]
[1763400689365,3.2078,3094.6,3094.5,3.082e-05]
[1763400689366,3.96977696,3094.6,3094.5,3.082e-05]
[1763400690265,3.2078,3094.6,3094.5,3.082e-05]
[1763400690874,3.2078,3095.1,3094.5,3.082e-05]
[1763400691171,0.0048398,3095.2,3094.9,3.2078]
[1763400692074,3.2126398,3095.2,3094.5,3.20783082]
[1763400692468,0.76110084,3095.1,3094.5,3.20783082]
[1763400693171,3.2126398,3095.2,3094.5,3.20783082]
[1763400693368,3.2078,3094.6,3094.5,3.082e-05]
[1763400696980,0.6982,3094.8,3094.7,0.52393]
[1763400697283,3.2078,3095.0,3094.8,0.52391]
[1763400697775,0.7030398,3095.2,3095.1,0.52387]
[1763400697971,0.7030398,3095.2,3094.5,3.082e-05]
[1763400698176,0.6982,3095.1,3094.5,3.082e-05]
[1763400698478,0.6982,3095.1,3094.9,0.52389]
[1763400698975,0.6982,3095.1,3094.5,3.082e-05]
[1763400699477,0.6982,3094.9,3094.8,0.5239]
[1763400699867,0.6982,3094.9,3094.5,3.082e-05]
[1763400699868,0.6982,3094.6,3094.5,3.082e-05]
[1763400700074,0.52395,3094.6,3094.5,3.082e-05]
[1763400700274,3.2078,3094.9,3094.5,3.082e-05]
[1763400701065,3.2078,3094.9,3094.8,0.52392]
[1763400701388,0.0048398,3095.2,3095.1,0.52387]
[1763400702075,0.0048398,3095.2,3095.1,1.24297]
[1763400703673,0.00307749,3096.0,3095.9,1.24283]
[1763400703973,0.00307749,3096.0,3095.5,3.2078]
[1763400704178,0.00307749,3096.0,3095.1,3.2078]
[1763400704677,0.7030398,3095.9,3095.1,3.2078]
[1763400704872,3.2078,3095.8,3095.5,0.5238]
[1763400705072,3.2078,3095.8,3095.6,0.52377]
[1763400705269,3.73155,3095.8,3095.6,0.52377]
[1763400705476,0.52378,3095.7,3095.4,0.5238]
[1763400705776,3.2078,3095.8,3094.7,3.2078]
[1763400705981,3.5548,3095.4,3094.7,3.73173]
[1763400706181,0.52392,3094.8,3094.7,3.2078]
[1763400706677,0.52392,3094.8,3094.5,3.082e-05]
[1763400706678,3.2078,3094.9,3094.5,3.082e-05]
[1763400707180,0.52395,3094.6,3094.5,3.082e-05]
[1763400707678,0.52394,3094.7,3094.5,0.52400082]
[1763400707874,0.52395,3094.6,3094.5,3.082e-05]
[1763400709182,6.52395,3094.6,3094.5,3.082e-05]
[1763400709383,7.28482711,3094.6,3094.5,3.082e-05]
[1763400709580,7.28482711,3094.6,3094.2,0.0048398]
[1763400709581,1.2222,3094.3,3094.2,3.98e-05]
[1763400709777,1.2222,3094.3,3092.8,0.26141387]
[1763400709778,5.12463904,3094.3,3092.8,0.26141387]
[1763400710075,3.2078,3093.5,3093.3,0.94627]
[1763400710276,3.2078,3093.5,3092.6,0.4221]
[1763400710277,0.52416,3093.4,3093.0,0.52422]
[1763400710473,0.52416,3093.4,3092.6,0.4221]
[1763400710674,3.2078,3093.0,3092.8,0.52426]
[1763400710879,0.0048477,3093.3,3093.2,0.52419]
[1763400711079,0.0048477,3093.3,3093.1,0.52421]
[1763400711582,0.0048477,3093.3,3093.1,3.73201]
[1763400711787,0.00350739,3093.4,3093.3,0.94627]
[1763400711982,0.00350739,3093.4,3093.3,0.4221]
[1763400712682,0.52767739,3093.4,3092.7,3.2126477]
[1763400712989,0.53251509,3093.4,3092.9,0.52423]
[1763400713185,0.76132524,3093.3,3092.8,0.52426]
[1763400713487,0.00835509,3093.4,3093.0,0.52422]
[1763400713686,0.00835509,3093.4,3093.3,0.94627]
[1763400716787,0.00835509,3093.4,3093.3,0.4221]
[1763400717193,0.00835509,3093.4,3093.3,0.94627]
[1763400717690,0.00835509,3093.4,3093.3,1.66537]
[1763400717889,0.00835509,3093.4,3093.3,0.94627]
[1763400718494,0.53251509,3093.4,3093.3,0.4221]
[1763400718795,0.7723953,3093.4,3093.3,0.4221]
[1763400718999,1.2965553,3093.4,3093.3,0.4221]
[1763400719392,0.00835509,3093.4,3093.3,0.94627]
[1763400720298,0.00835509,3093.4,3093.3,1.64147]
[1763400720493,0.00835509,3093.4,3093.3,0.4221]
[1763400720690,0.53251509,3093.4,3093.0,0.3841]
[1763400720889,0.00835509,3093.4,3093.0,0.3841]
[1763400721197,0.52419,3093.2,3093.0,0.90831]
[1763400721395,0.00835509,3093.4,3093.2,0.52419]
[1763400721594,0.77117515,3093.4,3093.0,0.3841]
[1763400721794,0.52419,3093.3,3093.0,0.3841]
[1763400722097,0.52426,3092.8,3092.7,0.0048477]
[1763400722296,3.2078,3093.1,3093.0,0.3841]
[1763400722595,4.49434058,3093.1,3093.0,0.3841]
[1763400722901,0.52424,3092.9,3092.7,0.5291177]
[1763400723096,3.2078,3093.1,3092.8,0.52426]
[1763400723401,3.73201,3093.1,3093.0,0.3841]
[1763400723594,4.49440408,3093.1,3093.0,0.3841]
[1763400724001,3.97019408,3093.1,3093.0,0.90832]
[1763400724402,0.00835509,3093.4,3093.3,1.21937]
[1763400724599,2.49761639,3093.5,3093.3,0.6952]
[1763400724801,3.2078,3094.0,3093.6,0.3841]
[1763400725102,0.76289296,3093.9,3093.8,1.21929]
[1763400725303,1.15596193,3095.0,3093.9,1.21927]
[1763400725501,3.2078,3094.4,3094.3,1.21919]
[1763400725706,3.2078,3094.4,3094.3,1.2192]
[1763400725908,3.2078,3094.4,3094.3,0.6952]
[1763400726106,0.00348024,3094.4,3094.3,1.2192]
[1763400727295,0.52747024,3094.4,3094.3,0.6952]
[1763400727497,0.52747024,3094.4,3094.2,0.90812]
[1763400727707,0.524,3094.3,3094.2,0.3841]
[1763400727911,0.00348024,3094.4,3094.3,0.6952]
[1763400728107,0.00348024,3094.4,3094.3,1.2192]
[1763400729104,0.00348024,3094.4,3094.3,0.6952]
[1763400729507,0.00348024,3094.4,3094.3,0.524]
[1763400729708,0.52747024,3094.4,3094.2,0.3841]
[1763400729907,0.52747024,3094.4,3094.2,0.90812]
[1763400730213,0.0048477,3094.7,3094.6,1.21915]
[1763400730504,0.0048477,3094.7,3094.6,0.6952]
[1763400730705,0.0048477,3094.7,3094.6,1.21915]
[1763400731212,0.00784239,3094.7,3094.6,4.42695]
[1763400731409,0.00784239,3094.7,3094.6,1.21915]
[1763400731621,3.2078,3095.7,3094.6,3.903]
[1763400731908,0.76406066,3095.6,3095.5,1.219]
[1763400732102,3.2078,3095.7,3095.5,1.219]
[1763400732302,3.2078,3095.7,3095.6,0.52378]
[1763400732506,14.11303999,3095.9,3095.8,0.52375]
[1763400732816,14.11617907,3095.9,3095.8,0.00279727]
[1763400733015,15.40439164,3095.9,3095.8,0.00279727]
[1763400734708,15.40439164,3095.9,3095.8,0.52654727]
[1763400735016,1.29135165,3095.9,3095.8,0.00279727]
[1763400735210,0.76762165,3095.9,3095.8,0.52654727]
[1763400735410,1.29135165,3095.9,3095.8,0.52654727]
[1763400735716,1.29135165,3095.9,3095.8,0.00279727]
[1763400735918,0.76762165,3095.9,3095.8,1.22174727]
[1763400736111,0.00313908,3095.9,3095.8,1.22174727]
[1763400736915,0.0048477,3096.2,3096.1,1.2189]
[1763400737311,4.77e-05,3096.2,3096.1,1.2189]
[1763400737516,3.2078,3096.9,3096.8,0.52358]
[1763400737812,3.2078,3097.3,3096.9,0.52356]
[1763400738009,3.21174464,3097.3,3097.2,0.4013]
[1763400738208,0.00394464,3097.3,3097.2,0.4013]
[1763400738418,0.52744464,3097.3,3097.2,0.4013]
[1763400738620,0.00394464,3097.3,3096.9,3.2078]
[1763400738823,0.00394464,3097.3,3097.0,0.52354]
[1763400739022,0.00394464,3097.3,3097.2,0.4013]
[1763400739325,0.00394464,3097.3,3097.2,1.57801]
[1763400740421,0.52743464,3097.3,3097.2,0.4013]
[1763400740621,3.21174464,3097.3,3096.6,0.4013]
[1763400740915,0.52367,3096.3,3096.0,3.5919]
[1763400741113,0.52369,3096.1,3096.0,0.4013]
[1763400741318,0.52366,3096.3,3096.0,0.92501]
[1763400741518,3.2078,3096.4,3096.0,0.4013]
[1763400741718,0.52368,3096.2,3096.1,1.17689]
[1763400741923,0.52369,3096.1,3096.0,0.4013]
[1763400742108,3.2078,3096.4,3096.0,0.4013]
[1763400742515,0.52366,3096.3,3096.1,0.52368]
[1763400742714,3.73144,3096.4,3096.2,0.52368]
[1763400742914,3.2078,3096.4,3096.0,0.4013]
[1763400743219,0.52373,3095.9,3095.8,0.00764497]
[1763400743423,0.52373,3095.9,3094.9,5.8828]
[1763400743424,0.52384,3095.3,3095.1,0.52386]
[1763400743613,0.52388,3095.0,3094.9,3.2078]
[1763400743818,3.2078,3095.3,3094.5,3.2078]
[1763400744017,0.5239,3094.9,3094.5,3.2078]
[1763400744217,0.524,3094.3,3094.2,0.4013]
[1763400744410,0.00297728,3094.3,3094.2,0.40379598]
[1763400745119,0.00297728,3094.3,3094.2,1.05699598]
[1763400745326,0.00297728,3094.3,3094.2,0.40379598]
[1763400745625,0.00297728,3094.3,3094.2,1.05699598]
[1763400745825,0.00297728,3094.3,3094.2,0.40379598]
[1763400746328,0.00297728,3094.3,3094.2,0.00249598]
[1763400747220,0.76570091,3094.3,3094.2,0.00249598]
[1763400747427,0.76570091,3094.3,3093.9,0.0048477]
[1763400747618,3.73185,3094.0,3093.9,0.0048477]
[1763400747812,4.49457363,3094.0,3093.9,0.0048477]
[1763400748818,4.49457363,3094.0,3093.0,12.0383]
[1763400748819,0.5242,3093.1,3093.0,0.4013]
[1763400749326,3.2078,3093.3,3092.6,0.52428]
[1763400749327,0.52427,3092.8,3092.6,0.52428]
[1763400749624,0.52429,3092.6,3092.4,0.4013]
[1763400749921,0.52431,3092.5,3092.4,0.00718284]
[1763400750124,0.52431,3092.5,3091.8,3.6091]
[1763400750125,3.97200763,3092.5,3091.9,0.5244]
[1763400750322,3.97200763,3092.5,3091.8,0.4013]
[1763400750323,3.2078,3092.5,3091.8,0.4013]
[1763400750523,3.73211,3092.5,3092.4,0.4061]
[1763400750824,3.2078,3092.5,3092.4,0.4061]
[1763400751030,3.2078,3092.5,3092.4,1.0962944]
[1763400751225,3.2078,3092.5,3092.4,0.4098944]
[1763400751417,3.2078,3092.5,3092.4,0.0037944]
[1763400751618,3.2078,3092.5,3092.1,0.0048477]
[1763400751921,3.2078,3092.5,3092.4,1.0925]
[1763400752135,3.2078,3092.9,3092.7,0.52427]
[1763400752427,0.52426,3092.8,3092.6,0.52429]
[1763400752633,0.52426,3092.8,3092.6,0.00297376]
[1763400753228,0.52436,3092.2,3092.1,0.0048477]
[1763400753528,0.52431,3092.6,3092.1,0.6912477]
[1763400753824,0.52431,3092.6,3092.4,0.4061]
[1763400754026,3.2078,3092.7,3092.4,0.4061]
[1763400754222,0.0048477,3093.0,3092.9,0.6864]
[1763400755019,3.73195,3093.5,3093.4,0.6864]
[1763400755020,3.2078,3093.5,3093.4,0.6864]
[1763400755221,3.2078,3093.5,3093.0,0.4061]
[1763400755419,3.2078,3093.5,3093.4,0.6864]
[1763400756225,0.0048477,3093.8,3093.4,0.6864]
[1763400756426,0.0048477,3093.8,3093.0,3.6139]
[1763400756726,0.0048477,3093.8,3093.5,0.52414]
[1763400757035,0.0048477,3093.8,3093.1,0.52421]
[1763400757235,0.52416,3093.4,3093.1,0.52421]
[1763400757643,0.52414,3093.6,3093.2,0.52419]
[1763400757929,0.52412,3093.7,3093.5,0.6864]
[1763400758135,0.5289377,3093.8,3093.5,0.6864]
[1763400758323,0.5289377,3093.8,3093.7,0.6864]
[1763400758530,0.0048477,3093.8,3093.7,0.6864]
[1763400758730,0.0048477,3093.8,3093.7,1.21051]
[1763400759336,3.21077728,3094.3,3094.2,1.0925]
[1763400759834,3.21077728,3094.3,3094.2,1.61652]
[1763400760234,3.73162,3095.5,3095.4,0.4061]
[1763400760439,3.2078,3095.5,3094.8,0.4061]
[1763400760633,1.15596193,3096.7,3094.8,0.4061]
[1763400760634,3.7317,3094.9,3094.8,0.4061]
[1763400760837,0.52396,3094.6,3094.3,0.524]
[1763400761036,0.524,3094.3,3094.2,0.4061]
[1763400761235,0.00280605,3094.3,3094.2,1.61915556]
[1763400761729,3.2078,3094.9,3094.8,0.6864]
[1763400761925,3.2078,3094.9,3094.7,0.4061]
[1763400762131,0.52392,3094.8,3094.7,0.4061]
[1763400762340,3.2078,3094.9,3094.7,0.93004]
[1763400762529,3.2078,3095.4,3094.9,0.5239]
[1763400762735,0.52389,3095.0,3094.8,0.52391]
[1763400762937,0.52392,3094.8,3094.7,4.3003]
[1763400763135,0.52392,3094.8,3094.7,3.6139]
[1763400763541,3.21032697,3095.4,3094.7,3.6139]
[1763400763740,3.73414697,3095.4,3095.2,0.52384]
[1763400764038,3.21032697,3095.4,3095.3,1.21023]
[1763400764243,3.73414697,3095.4,3095.3,0.6864]
[1763400764442,3.21032697,3095.4,3095.3,1.21023]
[1763400764740,0.00252697,3095.4,3095.3,1.21023]
[1763400764943,3.2126477,3095.8,3095.7,1.21017]
[1763400765131,3.2078,3096.9,3096.2,0.6864]
[1763400765330,3.2078,3096.9,3095.4,0.4061]
[1763400765331,0.5236,3096.7,3096.4,0.52365]
[1763400765535,0.52365,3096.4,3096.3,3.2078]
[1763400765735,0.52363,3096.5,3096.3,3.73145]
[1763400766032,0.52365,3096.4,3096.3,3.21144129]
[1763400766434,1.16275,3096.4,3096.3,0.00364129]
[1763400766635,0.52377,3095.7,3095.6,3.73158]
[1763400766834,3.21081268,3096.5,3095.8,0.52374]
[1763400767034,3.21081268,3096.5,3095.6,3.2078]
[1763400767247,3.8469,3095.7,3095.1,3.2078]
[1763400767542,0.6391,3095.7,3095.5,3.2078]
[1763400767744,3.59,3096.1,3095.5,3.21071727]
[1763400768045,0.6391,3095.6,3095.5,3.21071727]
[1763400768244,3.59,3096.1,3095.5,3.21071727]
[1763400768442,0.76482866,3096.0,3095.5,3.21071727]
[1763400768641,0.6391,3095.6,3095.5,3.21071727]
[1763400769245,3.2078,3096.1,3095.6,0.52378]
[1763400769546,3.2078,3096.1,3095.6,0.52377]
[1763400769846,3.2078,3096.1,3095.5,3.73451727]
[1763400770340,3.2078,3096.1,3095.7,0.52376]
[1763400770551,3.2078,3096.1,3095.5,3.21071727]
[1763400770741,3.2078,3096.1,3095.5,3.73451727]
[1763400770943,3.2078,3096.1,3095.5,3.21071727]
[1763400771146,3.2078,3096.1,3095.5,3.73449727]
[1763400771341,3.2078,3096.1,3095.5,3.21071727]
[1763400771536,0.00301268,3096.5,3095.5,3.21071727]
[1763400771537,0.00301268,3096.5,3096.2,0.52366]
[1763400771738,0.00301268,3096.5,3096.4,3.2078]
[1763400774442,0.6391,3096.1,3096.0,3.2078]
[1763400774844,0.52379,3095.6,3095.5,3.73450727]
[1763400775053,0.52379,3095.6,3095.5,3.21071727]
[1763400775245,0.52379,3095.6,3095.5,3.89711727]
[1763400775751,0.52379,3095.6,3095.5,4.42091727]
[1763400775948,0.52377,3095.7,3095.6,1.21018]
[1763400776252,0.52377,3095.7,3095.6,0.6864]
[1763400776641,0.52371,3096.1,3095.5,3.21071727]
[1763400776849,0.00301268,3096.5,3095.9,3.2078]
[1763400776850,0.52372,3096.0,3095.9,3.2078]
[1763400777046,0.52368,3096.2,3096.0,0.5237]
[1763400777351,0.5237,3096.1,3096.0,0.5237]
[1763400777543,0.00301268,3096.5,3096.0,0.52372]
[1763400777745,0.6553,3096.0,3095.9,3.2078]
[1763400778053,0.52372,3096.0,3095.9,3.8636]
[1763400778245,0.52372,3096.0,3095.9,3.2078]
[1763400778642,0.52379,3095.6,3095.5,3.21071727]
[1763400779156,3.2078,3096.2,3095.6,0.52378]
[1763400779448,3.2078,3096.2,3095.5,3.21071727]
[1763400779649,0.52379,3095.6,3095.5,3.86651727]
[1763400779850,0.52379,3095.6,3095.5,3.21071727]
[1763400779851,1.17909,3095.6,3095.5,3.21071727]
[1763400780352,3.2078,3096.2,3095.5,0.00291727]
[1763400780548,1.17909,3095.6,3095.5,0.00291727]
[1763400780745,1.17909,3095.6,3094.6,3.2078]
[1763400780746,1.17924,3094.7,3094.6,3.2078]
[1763400781552,0.52401,3094.3,3094.2,3.6139]
[1763400781850,1.17941,3093.7,3093.6,3.2078]
[1763400782047,0.52411,3093.7,3093.6,3.21029822]
[1763400782349,3.2078,3094.1,3093.6,3.21029822]
[1763400782350,0.52406,3094.0,3093.8,0.6558]
[1763400782653,0.52411,3093.7,3093.6,3.21029822]
[1763400782845,0.52409,3093.9,3093.7,0.52411]
[1763400783046,0.00318052,3094.3,3094.0,0.4019]
[1763400783545,0.65848052,3094.3,3093.8,3.2078]
[1763400783745,0.52407,3093.9,3093.8,3.2078]
[1763400783945,1.17941,3093.7,3093.6,0.00249822]
[1763400784145,0.52411,3093.7,3093.6,0.00249822]
[1763400784646,1.28961005,3093.7,3093.6,0.00249822]
[1763400784951,1.94491005,3093.7,3093.6,0.00249822]
[1763400785148,5.15271005,3093.7,3093.6,0.00249822]
[1763400785343,0.52423,3093.0,3092.9,3.2078]
[1763400785550,0.52423,3093.0,3091.9,5.4489]
[1763400785551,0.52433,3092.4,3092.3,3.2078]
[1763400785749,4.34772806,3093.3,3092.3,3.2078]
[1763400785750,0.52432,3092.5,3092.3,3.2078]
[1763400785950,3.5825,3093.3,3091.9,3.6097]
[1763400785951,3.2078,3092.9,3091.9,3.6097]
[1763400786254,0.52438,3092.1,3091.9,3.2078]
[1763400786457,0.52684175,3092.1,3091.9,3.211653]
[1763400786753,0.52684175,3092.1,3091.9,0.003853]
[1763400787146,0.52684175,3092.1,3091.9,3.211653]
[1763400787856,0.00246175,3092.1,3091.9,3.211653]
[1763400788148,0.00246175,3092.1,3092.0,0.5244]
[1763400788555,0.00246175,3092.1,3091.9,3.613553]
[1763400788753,0.00246175,3092.1,3091.9,4.137963]
[1763400788949,0.00246175,3092.1,3092.0,0.5244]
[1763400789555,0.0048477,3092.7,3092.6,0.5243]
[1763400789754,0.0048477,3092.7,3092.0,3.2078]
[1763400790057,0.52438,3092.1,3092.0,3.2078]
[1763400790260,0.0048477,3092.7,3091.9,0.003853]
[1763400790261,0.5244,3092.0,3091.9,0.003853]
[1763400790655,3.73546751,3092.0,3091.9,0.003853]
[1763400791051,0.52766751,3092.0,3091.9,0.003853]
[1763400791253,1.18296751,3092.0,3091.9,0.003853]
[1763400792259,0.52766751,3092.0,3091.9,0.003853]
[1763400792457,0.00326751,3092.0,3091.9,1.184063]
[1763400792753,1.18296751,3092.0,3091.9,0.003853]
[1763400792958,0.00326751,3092.0,3091.9,0.003853]
[1763400793344,0.52766751,3092.0,3091.9,0.003853]
[1763400793545,0.00326751,3092.0,3091.9,0.528263]
[1763400793745,0.00326751,3092.0,3091.9,1.585963]
[1763400794348,0.00326751,3092.0,3091.9,0.528263]
[1763400794548,0.00326751,3092.0,3091.9,1.184063]
[1763400794758,0.52766751,3092.0,3091.9,0.659653]
[1763400795063,1.18296751,3092.0,3091.9,0.003853]
[1763400795360,1.18296751,3092.0,3091.9,0.528263]
[1763400795560,1.18296751,3092.0,3091.9,0.003853]
[1763400796451,0.00326751,3092.0,3091.9,1.184063]
[1763400798258,0.52766751,3092.0,3091.9,0.003853]
[1763400798461,0.00326751,3092.0,3091.9,0.003853]
[1763400798656,0.52766751,3092.0,3091.9,0.658853]
[1763400798861,1.17826751,3092.0,3091.9,0.003853]
[1763400800663,0.52766751,3092.0,3091.9,0.003853]
[1763400800852,1.17826751,3092.0,3091.9,0.003853]
[1763400801058,1.17826751,3092.0,3091.9,0.528263]
[1763400801555,0.00326751,3092.0,3091.9,0.528263]
[1763400801866,0.00326751,3092.0,3091.9,1.183263]
[1763400802676,3.2078,3092.6,3092.4,0.52431]
[1763400802877,3.2078,3092.6,3092.0,3.2078]
[1763400803175,0.52438,3092.1,3092.0,4.38718]
[1763400803581,0.52438,3092.1,3092.0,3.2078]
[1763400803779,0.52851224,3092.1,3092.0,3.2078]
[1763400803971,0.52851224,3092.1,3092.0,3.8628]
[1763400804166,0.52419,3093.3,3092.9,0.655]
[1763400804371,3.2078,3093.5,3092.9,3.2078]
[1763400804674,1.17483,3093.0,3092.9,3.2078]
[1763400805282,0.52436,3092.3,3092.1,3.2078]
[1763400805468,9.2110922,3093.0,3092.1,3.2078]
[1763400805469,1.17496,3092.2,3092.1,3.2078]
[1763400806667,0.5244,3092.0,3091.9,0.003853]
[1763400806866,1.1449,3092.0,3091.9,0.003853]
[1763400807380,1.90665807,3092.0,3091.9,0.003853]
[1763400807581,1.28615807,3092.0,3091.9,0.003853]
[1763400808177,1.1459827,3092.8,3091.9,0.003853]
[1763400808378,0.5244,3092.0,3091.9,0.528263]
[1763400808577,0.52439,3092.2,3092.1,0.52438]
[1763400808778,0.52439,3092.2,3092.1,3.73218]
[1763400809185,0.52439,3092.2,3092.1,3.2078]
[1763400809378,1.29081932,3092.2,3092.1,3.2078]
[1763400809879,1.91131932,3092.2,3092.1,3.2078]
[1763400810686,1.1449,3092.0,3091.9,0.003853]
[1763400811088,1.91132932,3092.0,3091.9,0.003853]
[1763400811585,1.29082932,3092.0,3091.9,0.528263]
[1763400811787,1.29082932,3092.0,3091.9,0.003853]
[1763400811985,1.91132932,3092.0,3091.9,0.003853]
[1763400812187,0.76642932,3092.0,3091.9,1.150063]
[1763400812386,0.5244,3092.1,3092.0,1.1462]
[1763400812684,0.76765476,3092.3,3092.2,1.14616]
[1763400812884,1.1492749,3093.0,3092.9,1.14605]
[1763400813086,0.77084671,3093.0,3092.9,4.35385]
[1763400813387,3.2078,3093.3,3092.5,3.2078]
[1763400813687,0.52423,3093.1,3093.0,0.52423]
[1763400813883,0.52423,3093.0,3092.9,3.2078]
[1763400814192,0.5243,3092.6,3092.5,3.2078]
[1763400814789,3.2078,3092.8,3092.0,0.5244]
[1763400814981,3.2078,3092.8,3091.9,3.211653]
[1763400814982,0.5244,3092.0,3091.9,4.357853]
[1763400815685,0.52438,3092.1,3092.0,1.14619]
[1763400815990,0.52433,3092.5,3092.4,1.14613]
[1763400816289,0.52431,3092.5,3092.4,3.2078]
[1763400816480,0.52428,3092.7,3092.6,0.6218]
[1763400816681,0.00327438,3093.0,3092.9,1.14604]
[1763400816882,1.14800438,3093.0,3092.9,3.2078]
[1763400817482,0.52750438,3093.0,3092.9,3.2078]
[1763400817677,1.14800438,3093.0,3092.9,3.2078]
[1763400818295,1.76975708,3093.0,3092.4,3.2078]
[1763400818498,0.52431,3092.5,3092.4,3.2078]
[1763400818996,1.14481,3092.5,3092.4,3.2078]
[1763400819186,0.3315554,3094.2,3094.1,0.52404]
[1763400819396,3.2078,3095.1,3093.8,3.2078]
[1763400819592,0.52393,3094.8,3094.4,3.2078]
[1763400819792,3.2078,3095.1,3094.4,3.2078]
[1763400819793,0.52396,3094.6,3094.4,3.2078]
[1763400820289,0.5275005,3094.6,3094.4,3.21152428]
[1763400820700,0.5275005,3094.6,3094.4,0.00372428]
[1763400821590,3.2113405,3094.6,3094.0,3.2078]
[1763400821892,3.2078,3094.2,3093.2,3.2078]
[1763400822096,3.2078,3094.3,3093.6,3.2078]
[1763400822296,0.0035405,3094.6,3093.6,3.2078]
[1763400822589,0.0035405,3094.6,3094.0,3.2078]
[1763400822893,0.0035405,3094.6,3093.8,0.0048477]
[1763400822894,0.0035405,3094.6,3094.1,3.2078]
[1763400824790,0.0035405,3094.6,3093.8,0.0048477]
[1763400825196,0.73520237,3094.5,3093.8,0.0048477]
[1763400825385,0.73520237,3094.4,3094.1,3.2078]
[1763400825589,0.73520237,3094.3,3094.2,0.52402]
[1763400825790,0.0035405,3094.6,3094.1,3.2078]
[1763400826397,0.3177,3097.5,3094.7,0.363]
[1763400826398,3.2078,3096.0,3094.7,0.363]
[1763400826693,0.3867,3095.4,3094.6,3.2078]
[1763400827285,3.2078,3095.2,3094.2,3.2078]
[1763400827489,0.0048477,3095.3,3094.7,0.0048477]
[1763400827696,3.2078,3095.1,3094.7,0.0048477]
[1763400828189,3.2078,3095.1,3093.6,3.21084687]
[1763400828391,3.2078,3094.4,3093.6,3.21084687]
[1763400828699,0.52411,3093.8,3093.6,3.21084687]
[1763400829195,0.5241,3093.8,3093.6,3.21084687]
[1763400829595,0.52407,3094.0,3093.8,0.52409]
[1763400829896,0.5241,3093.8,3093.6,3.73495687]
[1763400830197,0.52404,3094.1,3093.6,9.21084687]
[1763400830395,0.52404,3094.1,3094.0,3.2078]
[1763400830897,0.52404,3094.1,3094.0,3.73186]
[1763400831196,0.3867,3094.7,3094.0,3.73186]
[1763400831197,0.52401,3094.4,3094.3,0.52401]
[1763400831592,0.0048477,3095.3,3094.0,3.5708]
[1763400831799,0.52406,3094.1,3093.9,0.52406]
[1763400832004,0.52406,3094.1,3094.0,3.2078]
[1763400832295,3.2078,3095.2,3094.0,3.2078]
[1763400832501,3.2078,3094.8,3094.4,3.2078]
[1763400832800,0.52397,3094.5,3094.4,3.2078]
[1763400833494,3.2078,3095.2,3094.4,3.2078]
[1763400833495,3.2078,3095.2,3094.6,0.52396]
[1763400833794,0.5239,3095.0,3094.9,1.1457]
[1763400833995,0.0048477,3095.3,3094.9,0.6218]
[1763400834195,0.52389,3095.1,3095.0,0.6218]
[1763400834399,0.52386,3095.2,3095.1,0.6218]
[1763400834594,0.52391,3094.9,3094.8,3.2078]
[1763400834796,0.52391,3094.9,3094.8,4.35352]
[1763400835001,0.52389,3095.0,3094.9,1.14569]
[1763400835998,0.5286877,3095.3,3095.2,1.14566]
[1763400836204,0.0048477,3095.3,3095.2,4.35346]
[1763400836896,0.0048477,3095.3,3095.2,3.2078]
[1763400837100,0.5286877,3095.3,3095.2,3.2078]
[1763400837496,0.5286877,3095.3,3095.2,3.8965]
[1763400837893,1.2766877,3095.3,3095.2,3.2078]
[1763400838299,1.99611016,3095.3,3095.2,3.2078]
[1763400838503,1.2766877,3095.3,3095.2,3.2078]
[1763400838813,1.9961042,3095.3,3095.2,3.2078]
[1763400839394,1.2766877,3095.3,3095.2,3.2078]
[1763400839594,0.5286877,3095.3,3095.2,3.8965]
[1763400840205,0.5286877,3095.3,3095.2,4.42036]
[1763400840401,0.00304625,3095.4,3095.2,3.2078]
[1763400840605,0.52375,3095.8,3095.7,0.6887]
[1763400840898,0.52369,3096.2,3096.1,0.6887]
[1763400841102,0.52365,3096.5,3096.4,0.6887]
[1763400841303,4.92327348,3097.7,3096.7,0.6887]
[1763400841504,7.264,3098.6,3096.4,3.2078]
[1763400841505,3.2078,3097.3,3096.4,3.2078]
[1763400841706,0.52355,3097.0,3096.9,0.0048477]
[1763400841909,1.24344276,3097.0,3096.9,0.0048477]
[1763400842102,0.52355,3097.0,3096.9,0.0048477]
[1763400842298,0.52355,3097.0,3096.9,0.6935477]
[1763400842700,0.52353,3097.1,3097.0,0.52355]
[1763400842901,0.52355,3097.0,3096.9,0.6935477]
[1763400843106,0.52353,3097.2,3097.1,0.6887]
[1763400843406,0.0048477,3097.5,3097.1,0.52353]
[1763400843595,0.5283177,3097.5,3097.3,3.2078]
[1763400843802,0.0048477,3097.5,3097.3,3.2078]
[1763400843999,0.5283177,3097.5,3097.3,3.7313]
[1763400844210,0.0048477,3097.5,3097.3,3.7313]
[1763400844501,0.71771296,3098.2,3098.1,0.52336]
[1763400844705,14.50495676,3100.2,3097.5,0.4289]
[1763400844706,3.2078,3099.1,3098.2,0.2587]
[1763400844905,0.52328,3098.6,3098.4,3.2078]
[1763400845402,3.2078,3099.1,3098.4,3.73111]
[1763400845598,3.2078,3099.1,3098.4,3.2078]
[1763400845599,0.52328,3098.6,3098.4,3.2078]
[1763400845799,0.03745834,3098.7,3098.4,3.2078]
[1763400846303,0.52329,3098.6,3098.4,3.2078]
[1763400846804,0.52329,3098.6,3098.4,3.73111]